fUSD/lending_fUSD_20240714
["ID","MTS","AMOUNT","RATE_DAILY","PERIOD"]
[332127141,1720978235272,-500.0,0.00013781,2]
[332127142,1720978235281,-500.0,0.00013781,2]
[332127143,1720978235290,-500.0,0.00013781,2]
[332127144,1720978235300,-500.0,0.00013781,2]
[332127145,1720978235309,-676.63,0.00013781,2]
[332127146,1720978235319,-500.0,0.00013781,2]
[332127147,1720978235329,-500.0,0.00013781,2]
[332127148,1720978235338,-500.0,0.00013781,2]
[332127149,1720978235348,-544.81,0.00013781,2]
[332127150,1720978235357,-1258.98,0.00013781,2]
[332127151,1720978235367,-500.0,0.00013781,2]
[332127152,1720978235377,-500.0,0.00013781,2]
[332127153,1720978235388,-574.07,0.00013781,2]
[332127154,1720978235401,-500.0,0.00013781,2]
[332127155,1720978235410,-4785.65,0.00013781,2]
[332127156,1720978235420,-500.0,0.00013781,2]
[332127157,1720978235430,-500.0,0.00013781,2]
[332127158,1720978235440,-891.35,0.00013781,2]
[332127159,1720978235450,-151.43344845,0.00013781,2]
[332127160,1720978235459,-500.0,0.00013781,2]
[332127161,1720978235470,-500.0,0.00013781,2]
[332127162,1720978235480,-500.0,0.00013781,2]
[332127163,1720978235489,-500.0,0.00013781,2]
[332127164,1720978235499,-500.0,0.00013781,2]
[332127165,1720978235508,-500.0,0.00013781,2]
[332127166,1720978235517,-351.27327251,0.00013781,2]
[332127167,1720978235527,-712.23,0.00013781,2]
[332127168,1720978235536,-292.23346111,0.00013781,2]
[332127169,1720978235545,-500.0,0.00013781,2]
[332127170,1720978235555,-500.0,0.00013781,2]
[332127171,1720978235565,-2060.95,0.00013781,2]
[332127172,1720978235574,-500.0,0.00013781,2]
[332127173,1720978235583,-500.0,0.00013781,2]
[332127174,1720978235592,-500.0,0.00013781,2]
[332127175,1720978235601,-500.0,0.00013781,2]
[332127176,1720978235610,-500.0,0.00013781,2]
[332127177,1720978235619,-201.58873198,0.00013781,2]
[332127178,1720978235629,-500.0,0.00013781,2]
[332127179,1720978235638,-500.0,0.00013781,2]
[332127180,1720978235648,-500.0,0.00013781,2]
[332127181,1720978235658,-1303.52911898,0.0001379,2]
[332127182,1720978235667,-1303.52911896,0.0001379,2]
[332127183,1720978235678,-1303.52911896,0.0001379,2]
[332127184,1720978235687,-1303.52911896,0.0001379,2]
[332127185,1720978235697,-1303.52911896,0.0001379,2]
[332127186,1720978235708,-2904.77643235,0.00013797,2]
[332127187,1720978235718,-190.87510932,0.00013799,2]
[332127188,1720978235727,-190.87510932,0.00013799,2]
[332127189,1720978235737,-1035.0,0.000138,5]
[332127190,1720978235747,-1303.52911896,0.00013803,2]
[332127191,1720978235757,-409.585,0.00013812,2]
[332127192,1720978235766,-1016.43286,0.00013816,2]
[332127193,1720978235778,-636.1,0.00013826,2]
[332127194,1720978235788,-636.1,0.00013826,2]
[332127195,1720978235797,-2000.0,0.00013826,2]
[332127196,1720978235807,-200.0,0.00013826,2]
[332127197,1720978235815,-200.0,0.00013826,2]
[332127198,1720978235824,-2000.0,0.00013826,2]
[332127199,1720978235833,-200.0,0.00013826,2]
[332127200,1720978235843,-1303.52911896,0.00013827,2]
[332127201,1720978235853,-500.0,0.00013836,2]
[332127202,1720978235862,-500.0,0.00013836,2]
[332127203,1720978235871,-500.0,0.00013836,2]
[332127204,1720978235881,-500.0,0.00013836,2]
[332127205,1720978235890,-500.0,0.00013836,2]
[332127206,1720978235900,-500.0,0.00013836,2]
[332127207,1720978235909,-612.36621777,0.00013836,2]
[332127208,1720978235918,-500.0,0.00013836,2]
[332127209,1720978235927,-500.0,0.00013836,2]
[332127210,1720978235936,-549.66,0.00013836,2]
[332127211,1720978235945,-238.83441658,0.00013836,2]
[332127212,1720978235955,-500.0,0.00013836,2]
[332127213,1720978235963,-500.0,0.00013836,2]
[332127214,1720978235973,-500.0,0.00013836,2]
[332127215,1720978235982,-500.0,0.00013836,2]
[332127216,1720978235991,-500.0,0.00013836,2]
[332127217,1720978236000,-500.0,0.00013836,2]
[332127218,1720978236009,-500.0,0.00013836,2]
[332127219,1720978236018,-500.0,0.00013836,2]
[332127220,1720978236028,-500.0,0.00013836,2]
[332127221,1720978236037,-500.0,0.00013836,2]
[332127222,1720978236046,-500.0,0.00013836,2]
[332127223,1720978236055,-883.13,0.00013836,2]
[332127224,1720978236065,-500.0,0.00013836,2]
[332127225,1720978236074,-500.0,0.00013836,2]
[332127226,1720978236083,-626.52170074,0.00013836,2]
[332127227,1720978236092,-500.0,0.00013836,2]
[332127228,1720978236101,-500.0,0.00013836,2]
[332127229,1720978236110,-500.0,0.00013836,2]
[332127230,1720978236120,-500.0,0.00013836,2]
[332127231,1720978236129,-273.29326637,0.00013836,2]
[332127232,1720978236140,-500.0,0.00013836,2]
[332127233,1720978236149,-500.0,0.00013836,2]
[332127234,1720978236158,-385.15602724,0.00013836,2]
[332127235,1720978236167,-500.0,0.00013836,2]
[332127236,1720978236177,-500.0,0.00013836,2]
[332127237,1720978236186,-500.0,0.00013836,2]
[332127238,1720978236195,-500.0,0.00013836,2]
[332127239,1720978236204,-500.0,0.00013836,2]
[332127240,1720978236213,-513.54,0.00013836,2]
[332127241,1720978236222,-500.0,0.00013836,2]
[332127242,1720978236231,-372.84,0.00013836,2]
[332127243,1720978236240,-500.0,0.00013836,2]
[332127244,1720978236250,-159.51,0.00013836,2]
[332127245,1720978236259,-536.92,0.00013836,2]
[332127246,1720978236268,-500.0,0.00013836,2]
[332127247,1720978236277,-500.0,0.00013836,2]
[332127248,1720978236286,-500.0,0.00013836,2]
[332127249,1720978236295,-500.0,0.00013836,2]
[332127250,1720978236304,-500.0,0.00013836,2]
[332127251,1720978236314,-500.0,0.00013836,2]
[332127252,1720978236323,-500.0,0.00013836,2]
[332127253,1720978236332,-500.0,0.00013836,2]
[332127254,1720978236342,-650.0,0.00013836,2]
[332127255,1720978236351,-500.0,0.00013836,2]
[332127256,1720978236359,-500.0,0.00013836,2]
[332127257,1720978236369,-500.0,0.00013836,2]
[332127258,1720978236378,-500.0,0.00013836,2]
[332127259,1720978236388,-500.0,0.00013836,2]
[332127260,1720978236400,-500.0,0.00013836,2]
[332127261,1720978236409,-500.0,0.00013836,2]
[332127262,1720978236418,-500.0,0.00013836,2]
[332127263,1720978236427,-520.65,0.00013836,2]
[332127264,1720978236436,-500.0,0.00013836,2]
[332127265,1720978236445,-500.0,0.00013836,2]
[332127266,1720978236454,-500.0,0.00013836,2]
[332127267,1720978236463,-623.38,0.00013836,2]
[332127268,1720978236472,-500.0,0.00013836,2]
[332127269,1720978236481,-500.0,0.00013836,2]
[332127270,1720978236490,-414.36354234,0.00013836,2]
[332127271,1720978236500,-500.0,0.00013836,2]
[332127272,1720978236509,-500.0,0.00013836,2]
[332127273,1720978236518,-500.0,0.00013836,2]
[332127274,1720978236527,-500.0,0.00013836,2]
[332127275,1720978236536,-500.0,0.00013836,2]
[332127276,1720978236545,-500.0,0.00013836,2]
[332127277,1720978236554,-500.0,0.00013836,2]
[332127278,1720978236564,-500.0,0.00013836,2]
[332127279,1720978236573,-580.83,0.00013836,2]
[332127280,1720978236583,-500.0,0.00013836,2]
[332127281,1720978236592,-500.0,0.00013836,2]
[332127282,1720978236601,-500.0,0.00013836,2]
[332127283,1720978236610,-500.0,0.00013836,2]
[332127284,1720978236619,-178.29485895,0.00013836,2]
[332127285,1720978236628,-500.0,0.00013836,2]
[332127286,1720978236637,-500.0,0.00013836,2]
[332127287,1720978236647,-500.0,0.00013836,2]
[332127288,1720978236656,-500.0,0.00013836,2]
[332127289,1720978236665,-500.0,0.00013836,2]
[332127290,1720978236674,-562.51,0.00013836,2]
[332127291,1720978236683,-500.0,0.00013836,2]
[332127292,1720978236693,-500.0,0.00013836,2]
[332127293,1720978236702,-500.0,0.00013836,2]
[332127294,1720978236711,-335.11932444,0.00013836,2]
[332127295,1720978236720,-500.0,0.00013836,2]
[332127296,1720978236730,-500.0,0.00013836,2]
[332127297,1720978236739,-315.64015499,0.00013836,2]
[332127298,1720978236749,-500.0,0.00013836,2]
[332127299,1720978236758,-500.0,0.00013836,2]
[332127300,1720978236767,-500.0,0.00013836,2]
[332127301,1720978236777,-500.0,0.00013836,2]
[332127302,1720978236787,-528.01,0.00013836,2]
[332127303,1720978236796,-173.078308,0.00013836,2]
[332127304,1720978236808,-500.0,0.00013836,2]
[332127305,1720978236818,-840.09,0.00013836,2]
[332127306,1720978236828,-500.0,0.00013836,2]
[332127307,1720978236838,-500.0,0.00013836,2]
[332127308,1720978236847,-500.0,0.00013836,2]
[332127309,1720978236857,-516.96,0.00013836,2]
[332127310,1720978236866,-500.0,0.00013836,2]
[332127311,1720978236876,-640.44,0.00013836,2]
[332127312,1720978236885,-1058.88,0.00013836,2]
[332127313,1720978236895,-500.0,0.00013836,2]
[332127314,1720978236905,-500.0,0.00013836,2]
[332127315,1720978236914,-500.0,0.00013836,2]
[332127316,1720978236924,-500.0,0.00013836,2]
[332127317,1720978236935,-500.0,0.00013836,2]
[332127318,1720978236946,-574.81,0.00013836,2]
[332127319,1720978236955,-679.56,0.00013836,2]
[332127320,1720978236966,-500.0,0.00013836,2]
[332127321,1720978236977,-500.0,0.00013836,2]
[332127322,1720978236986,-500.0,0.00013836,2]
[332127323,1720978236996,-500.0,0.00013836,2]
[332127324,1720978237007,-300.77,0.00013836,2]
[332127325,1720978237017,-1259.78,0.00013836,2]
[332127326,1720978237027,-500.0,0.00013836,2]
[332127327,1720978237036,-500.0,0.00013836,2]
[332127328,1720978237046,-616.65,0.00013836,2]
[332127329,1720978237055,-500.0,0.00013836,2]
[332127330,1720978237065,-500.0,0.00013836,2]
[332127331,1720978237074,-990.57,0.00013836,2]
[332127332,1720978237084,-500.0,0.00013836,2]
[332127333,1720978237093,-500.0,0.00013836,2]
[332127334,1720978237102,-670.89,0.00013836,2]
[332127335,1720978237111,-500.0,0.00013836,2]
[332127336,1720978237121,-536.63,0.00013836,2]
[332127337,1720978237130,-500.0,0.00013836,2]
[332127338,1720978237140,-500.0,0.00013836,2]
[332127339,1720978237149,-566.6,0.00013836,2]
[332127340,1720978237158,-550.42,0.00013836,2]
[332127341,1720978237167,-500.0,0.00013836,2]
[332127342,1720978237176,-500.0,0.00013836,2]
[332127343,1720978237185,-500.0,0.00013836,2]
[332127344,1720978237194,-918.19,0.00013836,2]
[332127345,1720978237203,-500.0,0.00013836,2]
[332127346,1720978237213,-500.0,0.00013836,2]
[332127347,1720978237222,-3643.46,0.00013836,2]
[332127348,1720978237231,-500.0,0.00013836,2]
[332127349,1720978237239,-576.81,0.00013836,2]
[332127350,1720978237249,-500.0,0.00013836,2]
[332127351,1720978237258,-500.0,0.00013836,2]
[332127352,1720978237267,-500.0,0.00013836,2]
[332127353,1720978237276,-500.0,0.00013836,2]
[332127354,1720978237285,-500.0,0.00013836,2]
[332127355,1720978237294,-584.28,0.00013836,2]
[332127356,1720978237303,-500.0,0.00013836,2]
[332127357,1720978237313,-500.0,0.00013836,2]
[332127358,1720978237322,-500.0,0.00013836,2]
[332127359,1720978237331,-500.0,0.00013836,2]
[332127360,1720978237340,-676.63,0.00013836,2]
[332127361,1720978237349,-500.0,0.00013836,2]
[332127362,1720978237358,-500.0,0.00013836,2]
[332127363,1720978237367,-544.81,0.00013836,2]
[332127364,1720978237376,-1258.98,0.00013836,2]
[332127365,1720978237385,-500.0,0.00013836,2]
[332127366,1720978237399,-574.07,0.00013836,2]
[332127367,1720978237408,-500.0,0.00013836,2]
[332127368,1720978237418,-4785.65,0.00013836,2]
[332127369,1720978237427,-384.21154102,0.00013836,2]
[332127370,1720978237437,-500.0,0.00013836,2]
[332127371,1720978237447,-891.35,0.00013836,2]
[332127372,1720978237456,-500.0,0.00013836,2]
[332127373,1720978237466,-461.73141,0.00013836,2]
[332127374,1720978237474,-500.0,0.00013836,2]
[332127375,1720978237484,-500.0,0.00013836,2]
[332127376,1720978237493,-500.0,0.00013836,2]
[332127377,1720978237502,-712.23,0.00013836,2]
[332127378,1720978237511,-500.0,0.00013836,2]
[332127379,1720978237521,-500.0,0.00013836,2]
[332127380,1720978237530,-2060.95,0.00013836,2]
[332127381,1720978237539,-500.0,0.00013836,2]
[332127382,1720978237548,-328.11980888,0.00013836,2]
[332127383,1720978237557,-500.0,0.00013836,2]
[332127384,1720978237566,-500.0,0.00013836,2]
[332127385,1720978237575,-500.0,0.00013836,2]
[332127386,1720978237584,-500.0,0.00013836,2]
[332127387,1720978237593,-500.0,0.00013836,2]
[332127388,1720978237603,-500.0,0.00013836,2]
[332127389,1720978237612,-2198.46123883,0.00013846,2]
[332127390,1720978237621,-1303.52911896,0.00013851,2]
[332127391,1720978237630,-11639.8921564,0.00013854,3]
[332127392,1720978237640,-636.1,0.0001386,2]
[332127393,1720978237649,-58199.460782,0.0001387,3]
[332127394,1720978237658,-636.1,0.0001387,2]
[332127395,1720978237667,-636.1,0.0001387,2]
[332127396,1720978237676,-2198.46123883,0.00013873,2]
[332127398,1720978237685,-1303.52911896,0.00013876,2]
[332127399,1720978237694,-80740.17282652,0.0001388,2]
[332127415,1720978237922,-315.77825998,0.0001388,2]
[332127416,1720978237934,-2907.4,0.0001388,2]
[332127433,1720978238505,-15009.08875047,0.0001388,2]
[332127436,1720978238517,-4883.23432975,0.0001388,2]
[332127438,1720978238528,-4719.99002681,0.0001388,2]
[332127440,1720978238540,-1275.15327242,0.0001388,2]
[332127446,1720978238583,-4259.9738215,0.0001388,2]
[332127448,1720978238594,-5350.88740124,0.0001388,2]
[332127450,1720978238604,-7446.41648343,0.00013881,3]
[332127452,1720978238617,-313.999999,0.00013881,3]
[332127456,1720978238639,-510.12408001,0.00013881,3]
[332127458,1720978238650,-365.73341748,0.00013881,3]
[332127580,1720978239913,-500.0,0.00013781,2]
[332127583,1720978239926,-500.0,0.00013781,2]
[332127586,1720978239937,-500.0,0.00013836,2]
[332127590,1720978239947,-500.0,0.00013836,2]
[332127593,1720978239958,-2023.30826427,0.00013881,3]
[332127619,1720978240189,-24929.11631104,0.00013881,3]
[332127622,1720978240201,-10970.87007037,0.00013881,3]
[332127624,1720978240210,-459.31,0.0001389,2]
[332127626,1720978240220,-500.0,0.00013891,2]
[332127628,1720978240229,-500.0,0.00013891,2]
[332127630,1720978240239,-601.31660444,0.00013891,2]
[332127632,1720978240248,-500.0,0.00013891,2]
[332127634,1720978240257,-500.0,0.00013891,2]
[332127636,1720978240266,-500.0,0.00013891,2]
[332127638,1720978240275,-500.0,0.00013891,2]
[332127640,1720978240285,-500.0,0.00013891,2]
[332127642,1720978240294,-500.0,0.00013891,2]
[332127644,1720978240303,-500.0,0.00013891,2]
[332127646,1720978240312,-500.0,0.00013891,2]
[332127648,1720978240321,-500.0,0.00013891,2]
[332127650,1720978240330,-500.0,0.00013891,2]
[332127652,1720978240339,-500.0,0.00013891,2]
[332127654,1720978240348,-500.0,0.00013891,2]
[332127656,1720978240357,-500.0,0.00013891,2]
[332127658,1720978240367,-500.0,0.00013891,2]
[332127660,1720978240376,-500.0,0.00013891,2]
[332127662,1720978240387,-883.13,0.00013891,2]
[332127664,1720978240401,-500.0,0.00013891,2]
[332127666,1720978240410,-500.0,0.00013891,2]
[332127668,1720978240420,-500.0,0.00013891,2]
[332127670,1720978240429,-500.0,0.00013891,2]
[332127672,1720978240439,-500.0,0.00013891,2]
[332127674,1720978240450,-500.0,0.00013891,2]
[332127677,1720978240459,-500.0,0.00013891,2]
[332127679,1720978240469,-500.0,0.00013891,2]
[332127680,1720978240478,-500.0,0.00013891,2]
[332127682,1720978240487,-500.0,0.00013891,2]
[332127684,1720978240497,-500.0,0.00013891,2]
[332127687,1720978240506,-500.0,0.00013891,2]
[332127689,1720978240516,-500.0,0.00013891,2]
[332127691,1720978240527,-513.54,0.00013891,2]
[332127693,1720978240537,-500.0,0.00013891,2]
[332127695,1720978240547,-500.0,0.00013891,2]
[332127697,1720978240557,-159.51,0.00013891,2]
[332127699,1720978240567,-536.92,0.00013891,2]
[332127701,1720978240577,-500.0,0.00013891,2]
[332127703,1720978240586,-500.0,0.00013891,2]
[332127705,1720978240596,-500.0,0.00013891,2]
[332127707,1720978240607,-500.0,0.00013891,2]
[332127709,1720978240617,-500.0,0.00013891,2]
[332127711,1720978240626,-500.0,0.00013891,2]
[332127713,1720978240636,-500.0,0.00013891,2]
[332127715,1720978240647,-500.0,0.00013891,2]
[332127717,1720978240657,-650.0,0.00013891,2]
[332127720,1720978240669,-500.0,0.00013891,2]
[332127722,1720978240678,-500.0,0.00013891,2]
[332127724,1720978240688,-500.0,0.00013891,2]
[332127726,1720978240699,-500.0,0.00013891,2]
[332127728,1720978240708,-500.0,0.00013891,2]
[332127730,1720978240717,-500.0,0.00013891,2]
[332127732,1720978240727,-500.0,0.00013891,2]
[332127734,1720978240736,-500.0,0.00013891,2]
[332127736,1720978240746,-520.65,0.00013891,2]
[332127738,1720978240755,-448.98988055,0.00013891,2]
[332127740,1720978240764,-500.0,0.00013891,2]
[332127742,1720978240774,-500.0,0.00013891,2]
[332127744,1720978240783,-623.38,0.00013891,2]
[332127746,1720978240794,-500.0,0.00013891,2]
[332127748,1720978240803,-500.0,0.00013891,2]
[332127750,1720978240813,-500.0,0.00013891,2]
[332127752,1720978240823,-500.0,0.00013891,2]
[332127754,1720978240833,-295.55424311,0.00013891,2]
[332127756,1720978240842,-500.0,0.00013891,2]
[332127758,1720978240852,-161.75585976,0.00013891,2]
[332127760,1720978240862,-615.5488463,0.00013891,2]
[332127762,1720978240871,-500.0,0.00013891,2]
[332127764,1720978240881,-500.0,0.00013891,2]
[332127766,1720978240890,-580.83,0.00013891,2]
[332127768,1720978240899,-500.0,0.00013891,2]
[332127769,1720978240909,-500.0,0.00013891,2]
[332127770,1720978240918,-500.0,0.00013891,2]
[332127771,1720978240927,-500.0,0.00013891,2]
[332127772,1720978240937,-500.0,0.00013891,2]
[332127773,1720978240947,-500.0,0.00013891,2]
[332127774,1720978240957,-500.0,0.00013891,2]
[332127775,1720978240968,-500.0,0.00013891,2]
[332127776,1720978240978,-500.0,0.00013891,2]
[332127778,1720978240987,-562.51,0.00013891,2]
[332127781,1720978240999,-500.0,0.00013891,2]
[332127783,1720978241010,-500.0,0.00013891,2]
[332127785,1720978241020,-500.0,0.00013891,2]
[332127787,1720978241030,-500.0,0.00013891,2]
[332127789,1720978241040,-500.0,0.00013891,2]
[332127791,1720978241050,-500.0,0.00013891,2]
[332127793,1720978241060,-506.5,0.00013891,2]
[332127796,1720978241070,-500.0,0.00013891,2]
[332127798,1720978241079,-500.0,0.00013891,2]
[332127800,1720978241089,-528.01,0.00013891,2]
[332127802,1720978241100,-500.0,0.00013891,2]
[332127804,1720978241111,-500.0,0.00013891,2]
[332127806,1720978241123,-500.0,0.00013891,2]
[332127808,1720978241133,-425.38328138,0.00013891,2]
[332127810,1720978241145,-516.96,0.00013891,2]
[332127812,1720978241154,-1058.88,0.00013891,2]
[332127814,1720978241163,-500.0,0.00013891,2]
[332127816,1720978241173,-500.0,0.00013891,2]
[332127818,1720978241182,-500.0,0.00013891,2]
[332127820,1720978241193,-500.0,0.00013891,2]
[332127822,1720978241203,-574.81,0.00013891,2]
[332127825,1720978241215,-679.56,0.00013891,2]
[332127827,1720978241227,-500.0,0.00013891,2]
[332127829,1720978241239,-500.0,0.00013891,2]
[332127831,1720978241249,-500.0,0.00013891,2]
[332127833,1720978241258,-500.0,0.00013891,2]
[332127836,1720978241269,-1259.78,0.00013891,2]
[332127838,1720978241279,-500.0,0.00013891,2]
[332127840,1720978241289,-500.0,0.00013891,2]
[332127842,1720978241299,-616.65,0.00013891,2]
[332127844,1720978241308,-500.0,0.00013891,2]
[332127846,1720978241320,-500.0,0.00013891,2]
[332127848,1720978241331,-990.57,0.00013891,2]
[332127850,1720978241343,-500.0,0.00013891,2]
[332127853,1720978241353,-500.0,0.00013891,2]
[332127855,1720978241364,-670.89,0.00013891,2]
[332127857,1720978241373,-500.0,0.00013891,2]
[332127859,1720978241383,-536.63,0.00013891,2]
[332127861,1720978241397,-500.0,0.00013891,2]
[332127863,1720978241406,-500.0,0.00013891,2]
[332127865,1720978241416,-550.42,0.00013891,2]
[332127867,1720978241427,-566.6,0.00013891,2]
[332127869,1720978241438,-500.0,0.00013891,2]
[332127872,1720978241449,-500.0,0.00013891,2]
[332127874,1720978241459,-500.0,0.00013891,2]
[332127876,1720978241471,-918.19,0.00013891,2]
[332127878,1720978241481,-500.0,0.00013891,2]
[332127880,1720978241490,-500.0,0.00013891,2]
[332127882,1720978241499,-3643.46,0.00013891,2]
[332127884,1720978241509,-500.0,0.00013891,2]
[332127886,1720978241518,-576.81,0.00013891,2]
[332127888,1720978241527,-500.0,0.00013891,2]
[332127890,1720978241536,-500.0,0.00013891,2]
[332127892,1720978241545,-500.0,0.00013891,2]
[332127894,1720978241554,-500.0,0.00013891,2]
[332127896,1720978241565,-584.28,0.00013891,2]
[332127898,1720978241577,-500.0,0.00013891,2]
[332127900,1720978241587,-500.0,0.00013891,2]
[332127902,1720978241598,-500.0,0.00013891,2]
[332127905,1720978241608,-500.0,0.00013891,2]
[332127907,1720978241620,-676.63,0.00013891,2]
[332127909,1720978241630,-500.0,0.00013891,2]
[332127911,1720978241640,-500.0,0.00013891,2]
[332127913,1720978241649,-500.0,0.00013891,2]
[332127915,1720978241658,-544.81,0.00013891,2]
[332127917,1720978241668,-1258.98,0.00013891,2]
[332127919,1720978241677,-500.0,0.00013891,2]
[332127921,1720978241687,-574.07,0.00013891,2]
[332127923,1720978241696,-500.0,0.00013891,2]
[332127925,1720978241706,-4785.65,0.00013891,2]
[332127927,1720978241716,-382.31,0.00013891,2]
[332127929,1720978241725,-891.35,0.00013891,2]
[332127931,1720978241735,-500.0,0.00013891,2]
[332127933,1720978241744,-500.0,0.00013891,2]
[332127935,1720978241754,-500.0,0.00013891,2]
[332127937,1720978241764,-500.0,0.00013891,2]
[332127940,1720978241775,-712.23,0.00013891,2]
[332127942,1720978241785,-500.0,0.00013891,2]
[332127944,1720978241795,-500.0,0.00013891,2]
[332127946,1720978241805,-2060.95,0.00013891,2]
[332127948,1720978241815,-500.0,0.00013891,2]
[332127950,1720978241824,-500.0,0.00013891,2]
[332127952,1720978241835,-500.0,0.00013891,2]
[332127954,1720978241844,-500.0,0.00013891,2]
[332127956,1720978241853,-500.0,0.00013891,2]
[332127958,1720978241864,-500.0,0.00013891,2]
[332127960,1720978241874,-500.0,0.00013891,2]
[332127962,1720978241883,-500.0,0.00013891,2]
[332127964,1720978241894,-500.0,0.00013891,2]
[332127966,1720978241904,-1303.52911896,0.000139,2]
[332127968,1720978241915,-190.87510932,0.000139,2]
[332127971,1720978241926,-356.0,0.000139,2]
[332127973,1720978241938,-1000.0,0.000139,2]
[332127975,1720978241950,-1000.0,0.000139,2]
[332127978,1720978241961,-1882.0028672,0.000139,2]
[332127980,1720978241974,-2198.46123883,0.000139,2]
[332127982,1720978241985,-225.0,0.000139,2]
[332127984,1720978241996,-199.30824592,0.000139,2]
[332127986,1720978242006,-11639.8921564,0.00013926,3]
[332127989,1720978242017,-11639.8921564,0.00013928,3]
[332127991,1720978242031,-34919.6764692,0.00013936,3]
[332127993,1720978242042,-23279.7843128,0.00013938,3]
[332127996,1720978242056,-500.0,0.00013946,2]
[332127998,1720978242069,-472.02279525,0.00013946,2]
[332128000,1720978242081,-500.0,0.00013946,2]
[332128002,1720978242093,-500.0,0.00013946,2]
[332128005,1720978242107,-500.0,0.00013946,2]
[332128007,1720978242118,-500.0,0.00013946,2]
[332128009,1720978242130,-500.0,0.00013946,2]
[332128011,1720978242141,-500.0,0.00013946,2]
[332128013,1720978242153,-500.0,0.00013946,2]
[332128016,1720978242167,-249.36960718,0.00013946,2]
[332128018,1720978242178,-500.0,0.00013946,2]
[332128020,1720978242191,-185.122776,0.00013946,2]
[332128023,1720978242203,-211.79,0.00013946,2]
[332128025,1720978242215,-500.0,0.00013946,2]
[332128027,1720978242229,-459.16052567,0.00013946,2]
[332128029,1720978242240,-500.0,0.00013946,2]
[332128032,1720978242253,-500.0,0.00013946,2]
[332128034,1720978242266,-883.13,0.00013946,2]
[332128037,1720978242278,-500.0,0.00013946,2]
[332128039,1720978242289,-500.0,0.00013946,2]
[332128041,1720978242300,-500.0,0.00013946,2]
[332128043,1720978242311,-500.0,0.00013946,2]
[332128045,1720978242322,-500.0,0.00013946,2]
[332128048,1720978242334,-500.0,0.00013946,2]
[332128050,1720978242346,-500.0,0.00013946,2]
[332128052,1720978242359,-500.0,0.00013946,2]
[332128055,1720978242371,-151.62880409,0.00013946,2]
[332128057,1720978242382,-500.0,0.00013946,2]
[332128059,1720978242396,-500.0,0.00013946,2]
[332128061,1720978242407,-500.0,0.00013946,2]
[332128063,1720978242418,-500.0,0.00013946,2]
[332128066,1720978242431,-513.54,0.00013946,2]
[332128068,1720978242443,-500.0,0.00013946,2]
[332128070,1720978242455,-500.0,0.00013946,2]
[332128072,1720978242467,-159.51,0.00013946,2]
[332128075,1720978242478,-536.92,0.00013946,2]
[332128077,1720978242489,-500.0,0.00013946,2]
[332128079,1720978242500,-500.0,0.00013946,2]
[332128081,1720978242511,-500.0,0.00013946,2]
[332128083,1720978242520,-500.0,0.00013946,2]